fUSD/lending_fUSD_20250118
["ID","MTS","AMOUNT","RATE_DAILY","PERIOD"]
[349432308,1737177045242,-319.22501676,0.00019938,2]
[349432309,1737177045643,-180.77498324,0.00019938,2]
[349432310,1737177045653,-551.75043161,0.00019938,2]
[349432311,1737177045700,-4767.20956839,0.00019938,2]
[349432312,1737177045709,-500.0,0.00019938,2]
[349432313,1737177045719,-1148.61,0.00019938,2]
[349432314,1737177045728,-358.01724438,0.00019938,2]
[349432315,1737177045759,-505.43275562,0.00019938,2]
[349432316,1737177045769,-2210.32,0.00019938,2]
[349432317,1737177045779,-500.0,0.00019938,2]
[349432318,1737177045788,-410.94723312,0.00019938,2]
[349432319,1737177045818,-320.07276688,0.00019938,2]
[349432320,1737177045828,-500.0,0.00019938,2]
[349432321,1737177045837,-500.0,0.00019938,2]
[349432322,1737177045850,-1075.38,0.00019938,2]
[349432323,1737177045860,-500.0,0.00019938,2]
[349432324,1737177045870,-657.96,0.00019938,2]
[349432325,1737177045880,-489.34124037,0.00019938,2]
[349432396,1737177279262,150.0,8.8e-05,2]
[349432397,1737177615723,1274.56895302,0.00023,120]
[349432399,1737177980519,3007.07600806,9.99e-05,2]
[349432400,1737178035157,-1058.70807486,0.00012071,2]
[349432401,1737178035179,-601.57298413,0.00012706,2]
[349432402,1737178045139,-456.42701587,0.00012706,2]
[349432403,1737178045166,-100.28822904,0.00012875,2]
[349432404,1737178052099,-113.46189157,0.00012875,2]
[349432405,1737178052120,-200.69271058,0.00012975,2]
[349432406,1737178052142,-1058.0,0.00013375,2]
[349432407,1737178052175,-400.82924399,0.00014079,2]
[349432413,1737178142319,197.96,0.00010137,2]
[349432415,1737178155160,-657.17075601,0.00014079,2]
[349432416,1737178155185,-1058.0,0.0001482,2]
[349432417,1737178155207,-159.78416231,0.000155,2]
[349432418,1737178155229,-1058.0,0.000156,2]
[349432419,1737178155251,-1058.0,0.0001638,2]
[349432420,1737178155273,-930.75,0.00016422,2]
[349432421,1737178155295,-197.96,0.00016813,2]
[349432422,1737178155316,-1058.0,0.00017199,2]
[349432423,1737178155337,-184.94,0.00017853,2]
[349432424,1737178155358,-250.0,0.00017897,2]
[349432425,1737178155379,-987.97,0.00017901,2]
[349432426,1737178155401,-768.0,0.00017919,2]
[349432427,1737178155420,-627.77,0.00017969,2]
[349432428,1737178155441,-250.0,0.00018005,2]
[349432429,1737178155462,-210.34,0.00018007,2]
[349432430,1737178155482,-250.0,0.00018021,2]
[349432431,1737178155504,-300.0,0.0001805,2]
[349432432,1737178155525,-1000.0,0.00018051,2]
[349432433,1737178155545,-1058.0,0.00018059,2]
[349432434,1737178155566,-345.86,0.00018125,2]
[349432435,1737178155588,-166.72,0.00018327,2]
[349432436,1737178155609,-3666.60798601,0.0001834,2]
[349432437,1737178157117,-20215.79382966,0.0001834,2]
[349432467,1737178232219,-17.59818433,0.0001834,2]
[349432468,1737178232229,-162.89,0.00018401,2]
[349432469,1737178232238,-468.41179467,0.00018409,2]
[349432470,1737178232250,-1235.82820533,0.00018409,2]
[349432471,1737178232259,-158.01,0.00018409,2]
[349432472,1737178232268,-167.96,0.00018476,2]
[349432473,1737178232279,-413.78,0.00018498,2]
[349432474,1737178232290,-930.75,0.00018686,2]
[349432475,1737178232299,-1058.0,0.00018962,2]
[349432476,1737178232310,-1852.42,0.00018963,2]
[349432477,1737178232318,-471.81176635,0.00019151,2]
[349432478,1737178232329,-2626.18823365,0.00019151,2]
[349432479,1737178232339,-772.56,0.00019178,2]
[349432480,1737178232348,-1326.108,0.00019222,2]
[349432481,1737178232358,-500.0,0.00019568,2]
[349432482,1737178232368,-900.0,0.00019568,2]
[349432483,1737178232377,-500.0,0.00019568,2]
[349432484,1737178232387,-300.0,0.000196,7]
[349432485,1737178232396,-600.0,0.000197,7]
[349432486,1737178232406,-1127.04,0.00019726,14]
[349432487,1737178232416,-900.0,0.000198,7]
[349432488,1737178232426,-1910.68496571,0.000198,2]
[349432489,1737178232435,-154.05660279,0.00019837,2]
[349432490,1737178232445,-409.0,0.00019837,2]
[349432491,1737178232455,-5000.0,0.00019838,2]
[349432492,1737178232465,-705.6345,0.00019838,2]
[349432493,1737178232474,-432.1607,0.00019838,2]
[349432494,1737178232484,-31687.901,0.00019838,2]
[349432495,1737178232493,-416.6583,0.00019839,2]
[349432496,1737178232502,-1200.0,0.000199,7]
[349432497,1737178232511,-1058.0,0.0001991,2]
[349432498,1737178232520,-152.4,0.00019927,2]
[349432499,1737178232529,-152.4,0.00019927,2]
[349432500,1737178232538,-602.82,0.00019936,2]
[349432501,1737178232547,-600.45,0.00019936,2]
[349432502,1737178232558,-500.0,0.00019936,2]
[349432503,1737178232572,-500.0,0.00019936,2]
[349432504,1737178232586,-552.36897395,0.00019936,2]
[349432505,1737178232599,-596.85102605,0.00019936,2]
[349432506,1737178232608,-1016.45,0.00019936,2]
[349432507,1737178232617,-799.01,0.00019936,2]
[349432508,1737178232626,-1882.19,0.00019936,2]
[349432509,1737178232635,-500.0,0.00019936,2]
[349432510,1737178232646,-500.0,0.00019936,2]
[349432511,1737178232656,-500.0,0.00019936,2]
[349432512,1737178232665,-538.12,0.00019936,2]
[349432513,1737178232676,-500.0,0.00019936,2]
[349432514,1737178232692,-602.46,0.00019936,2]
[349432515,1737178232701,-500.0,0.00019936,2]
[349432516,1737178232711,-500.0,0.00019936,2]
[349432517,1737178232720,-500.0,0.00019936,2]
[349432518,1737178232729,-5459.87,0.00019936,2]
[349432519,1737178232738,-625.75,0.00019936,2]
[349432520,1737178232747,-500.0,0.00019936,2]
[349432521,1737178232756,-552.26,0.00019936,2]
[349432522,1737178232767,-500.0,0.00019936,2]
[349432523,1737178232775,-500.0,0.00019936,2]
[349432524,1737178232784,-500.87195123,0.00019936,2]
[349432525,1737178232793,-500.0,0.00019936,2]
[349432526,1737178232803,-809.77,0.00019936,2]
[349432527,1737178232812,-500.0,0.00019936,2]
[349432528,1737178232821,-500.0,0.00019936,2]
[349432529,1737178232830,-500.0,0.00019936,2]
[349432530,1737178232839,-2118.23,0.00019936,2]
[349432531,1737178232848,-500.0,0.00019936,2]
[349432532,1737178232857,-500.0,0.00019936,2]
[349432533,1737178232866,-1100.75,0.00019936,2]
[349432534,1737178232876,-500.0,0.00019936,2]
[349432535,1737178232885,-500.0,0.00019936,2]
[349432536,1737178232894,-500.0,0.00019936,2]
[349432537,1737178232903,-500.0,0.00019936,2]
[349432538,1737178232911,-99243.41702272,0.00019936,2]
[349432539,1737178232926,-5331.488474,0.00019936,2]
[349432540,1737178232949,-338.3222304,0.00019936,2]
[349432541,1737178236146,-333.21960545,0.00019936,2]
[349432542,1737178236159,-166.78039455,0.00019936,2]
[349432543,1737178236168,-100.0,0.00019936,2]
[349432544,1737178236212,-400.0,0.00019936,2]
[349432545,1737178236221,-1173.66208401,0.00019936,2]
[349432546,1737178236231,-1588.71795341,0.00019936,2]
[349432547,1737178236243,-22149.94757904,0.00019936,2]
[349432548,1737178236274,-335.08475,0.00019936,2]
[349432565,1737178237881,-994.11000008,0.00019936,2]
[349432566,1737178238163,-25.90999992,0.00019936,2]
[349432567,1737178238172,-500.0,0.00019936,2]
[349432568,1737178238181,-106.54704558,0.00019936,2]
[349432569,1737178238193,-393.45295442,0.00019936,2]
[349432570,1737178238205,-648.84714846,0.00019936,2]
[349432571,1737178238215,-500.0,0.00019936,2]
[349432572,1737178238224,-4774.28050425,0.00019936,2]
[349432575,1737178238243,-940.60310439,0.00019936,2]
[349432577,1737178238254,-1576.94110857,0.00019936,2]
[349432579,1737178238265,-19794.76101238,0.00019936,2]
[349432623,1737178240156,-322.310568,0.0001974,2]
[349432624,1737178240168,-260.67325218,0.0001974,2]
[349432625,1737178240497,-506.18399671,0.0001974,2]
[349432807,1737178243026,-1667.46727694,0.0001974,2]
[349432904,1737178245882,-721.0879654,0.00019184,2]
[349432905,1737178246010,-1131.3320346,0.00019184,2]
[349432906,1737178246020,-243.36490617,0.0001974,2]
[349432907,1737178246030,-65.70307843,0.00019936,2]
[349432908,1737178246070,-434.29692157,0.00019936,2]
[349432909,1737178246080,-500.0,0.00019936,2]
[349432910,1737178246090,-500.0,0.00019936,2]
[349432911,1737178246099,-500.0,0.00019936,2]
[349432912,1737178246109,-500.0,0.00019936,2]
[349432913,1737178246119,-500.0,0.00019936,2]
[349432914,1737178246129,-500.0,0.00019936,2]
[349432915,1737178246138,-500.0,0.00019936,2]
[349432916,1737178246148,-500.0,0.00019936,2]
[349432917,1737178246158,-503.78284083,0.00019936,2]
[349432918,1737178246167,-500.0,0.00019936,2]
[349432919,1737178246177,-500.0,0.00019936,2]
[349432920,1737178246187,-210.374241,0.00019936,2]
[349432921,1737178246196,-500.0,0.00019936,2]
[349432922,1737178246208,-1029.29299547,0.00019936,2]
[349432923,1737178246220,-1101.59055703,0.00019936,2]
[349432924,1737178246231,-3345.69486,0.00019936,2]
[349432926,1737178246441,-500.0,0.00019936,2]
[349432927,1737178246451,-557.13161863,0.00019936,2]
[349432929,1737179027104,153.68,0.00010137,2]
[349432931,1737179145107,-373.51086305,0.00017236,2]
[349432932,1737179230081,-371.3264223,0.00017236,2]
[349432933,1737179239092,-143.97271465,0.00017236,2]
[349432934,1737179239114,-786.87,0.00018486,2]
[349432935,1737179239135,-238.29,0.000185,2]
[349432936,1737179239157,-200.69271059,0.0001851,2]
[349432937,1737179239179,-250.0,0.00018526,2]
[349432938,1737179239201,-35.81209736,0.00018609,2]
[349432939,1737179243115,-264.18790264,0.00018609,2]
[349432940,1737179243137,-324.86738806,0.0001861,2]
[349432941,1737179251124,-1002.27646391,0.0001861,2]
[349432980,1737179432406,-1573.46568944,0.0001861,2]
[349432981,1737179432417,-730.928,0.0001861,2]
[349432997,1737179438165,-1007.06245859,0.0001861,2]
[349432998,1737179438175,-1000.0,0.0001861,2]
[349432999,1737179438185,-4218.9836804,0.00018641,2]
[349433000,1737179438197,-1578.55074498,0.00018641,2]
[349433001,1737179438209,-9998.97676816,0.00018641,2]
[349433002,1737179438220,-1590.95550096,0.00018641,2]
[349433003,1737179438232,-6418.94649314,0.00018641,2]
[349433004,1737179438382,-93.58681236,0.00018641,2]
[349433005,1737179438392,-200.0,0.00018663,2]
[349433006,1737179438401,-167.96,0.00018663,2]
[349433007,1737179438411,-606.69,0.00018697,2]
[349433008,1737179438420,-881.18,0.00018721,2]
[349433009,1737179438430,-158.71,0.00018784,2]
[349433010,1737179438439,-200.0,0.00018826,2]
[349433011,1737179438449,-250.0,0.00018874,2]
[349433012,1737179438458,-250.0,0.00018924,2]
[349433013,1737179438467,-309.65,0.00018956,2]
[349433014,1737179438477,-1420.41,0.00018975,2]
[349433015,1737179438487,-170.34,0.00018999,2]
[349433016,1737179438496,-717.08,0.00019075,2]
[349433018,1737179438506,-1489.909,0.0001922,2]
[349433020,1737179438515,-300.49,0.00019452,2]
[349433022,1737179438524,-888.81,0.000195,2]
[349433024,1737179438534,-800.0,0.00019568,2]
[349433027,1737179438543,-500.0,0.00019568,2]
[349433028,1737179438552,-606.69,0.00019632,2]
[349433031,1737179438562,-1080.08,0.00019726,14]
[349433033,1737179438572,-150.0,0.00019726,2]
[349433035,1737179438583,-150.0,0.00019726,2]
[349433036,1737179438593,-154.835015,0.00019739,2]
[349433039,1737179438609,-154.835015,0.0001974,10]
[349433041,1737179438619,-3000.0,0.0001974,2]
[349433042,1737179438628,-154.05660277,0.00019835,2]
[349433045,1737179438637,-366.1854,0.00019836,2]
[349433046,1737179438647,-1288.18452183,0.00019899,2]
[349433049,1737179438657,-2924.4247914,0.000199,7]
[349433050,1737179438666,-5000.0,0.000199,2]
[349433052,1737179438676,-5000.0,0.000199,2]
[349433055,1737179438686,-5000.0,0.000199,15]
[349433057,1737179438696,-5007.0,0.000199,7]
[349433058,1737179438706,-250.0,0.000199,2]
[349433061,1737179438715,-250.0,0.000199,2]
[349433062,1737179438724,-250.0,0.000199,2]
[349433064,1737179438733,-250.0,0.000199,2]
[349433066,1737179438743,-250.0,0.000199,2]
[349433068,1737179438753,-250.0,0.000199,2]
[349433071,1737179438763,-250.0,0.000199,2]
[349433073,1737179438772,-250.0,0.000199,2]
[349433075,1737179438782,-250.0,0.000199,2]
[349433077,1737179438791,-250.0,0.000199,2]
[349433079,1737179438801,-250.0,0.000199,2]
[349433080,1737179438810,-250.0,0.000199,2]
[349433082,1737179438820,-250.0,0.000199,2]
[349433084,1737179438829,-250.0,0.000199,2]
[349433086,1737179438838,-250.0,0.000199,2]
[349433088,1737179438852,-250.0,0.000199,2]
[349433090,1737179438861,-250.0,0.000199,2]
[349433093,1737179438870,-250.0,0.000199,2]
[349433095,1737179438879,-250.0,0.000199,2]
[349433096,1737179438889,-250.0,0.000199,2]
[349433098,1737179438899,-250.0,0.000199,2]
[349433101,1737179438908,-250.0,0.000199,2]
[349433103,1737179438917,-250.0,0.000199,2]
[349433104,1737179438926,-250.0,0.000199,2]
[349433106,1737179438935,-250.0,0.000199,2]
[349433109,1737179438944,-250.0,0.000199,2]
[349433111,1737179438954,-250.0,0.000199,2]
[349433113,1737179438963,-250.0,0.000199,2]
[349433114,1737179438972,-250.0,0.000199,2]
[349433116,1737179438982,-250.0,0.000199,2]
[349433119,1737179438991,-250.0,0.000199,2]
[349433121,1737179439001,-250.0,0.000199,2]
[349433123,1737179439010,-250.0,0.000199,2]
[349433124,1737179439019,-250.0,0.000199,2]
[349433127,1737179439029,-250.0,0.000199,2]
[349433129,1737179439039,-315.5,0.000199,2]
[349433130,1737179439052,-152.4,0.00019925,2]
[349433132,1737179439062,-370052.40532957,0.00019932,2]
[349433134,1737179439071,-713173.83833661,0.00019934,2]
[349433137,1737179439080,-500.0,0.00019934,2]
[349433139,1737179439090,-500.0,0.00019934,2]
[349433141,1737179439104,-500.0,0.00019934,2]
[349433143,1737179439113,-500.0,0.00019934,2]
[349433145,1737179439123,-231.12833825,0.00019934,2]
[349433146,1737179439132,-500.0,0.00019934,2]
[349433149,1737179439142,-500.0,0.00019934,2]
[349433150,1737179439151,-500.0,0.00019934,2]
[349433152,1737179439161,-500.0,0.00019934,2]
[349433154,1737179439171,-500.0,0.00019934,2]
[349433156,1737179439180,-500.0,0.00019934,2]
[349433158,1737179439190,-621.2295449,0.00019934,2]
[349433160,1737179439199,-500.0,0.00019934,2]
[349433162,1737179439209,-500.0,0.00019934,2]
[349433164,1737179439218,-500.0,0.00019934,2]
[349433166,1737179439227,-500.0,0.00019934,2]
[349433169,1737179439238,-500.0,0.00019934,2]
[349433171,1737179439248,-503.70407114,0.00019934,2]
[349433172,1737179439258,-500.0,0.00019934,2]
[349433175,1737179439268,-500.0,0.00019934,2]
[349433177,1737179439277,-500.0,0.00019934,2]
[349433179,1737179439287,-500.0,0.00019934,2]
[349433181,1737179439296,-500.0,0.00019934,2]
[349433183,1737179439306,-500.0,0.00019934,2]
[349433184,1737179439315,-500.0,0.00019934,2]
[349433187,1737179439325,-500.0,0.00019934,2]
[349433188,1737179439335,-500.0,0.00019934,2]
[349433190,1737179439345,-500.0,0.00019934,2]
[349433192,1737179439357,-509.19307109,0.00019934,2]
[349433194,1737179439367,-500.0,0.00019934,2]
[349433197,1737179439377,-500.0,0.00019934,2]
[349433198,1737179439386,-500.0,0.00019934,2]
[349433200,1737179439395,-500.0,0.00019934,2]
[349433202,1737179439405,-500.0,0.00019934,2]
[349433205,1737179439414,-500.0,0.00019934,2]
[349433207,1737179439424,-500.0,0.00019934,2]
[349433208,1737179439433,-500.0,0.00019934,2]
[349433210,1737179439442,-500.0,0.00019934,2]
[349433212,1737179439452,-500.0,0.00019934,2]
[349433214,1737179439461,-500.0,0.00019934,2]
[349433216,1737179439470,-500.0,0.00019934,2]
[349433219,1737179439480,-500.0,0.00019934,2]
[349433221,1737179439489,-500.0,0.00019934,2]
[349433223,1737179439499,-500.0,0.00019934,2]
[349433225,1737179439509,-500.0,0.00019934,2]
[349433227,1737179439518,-500.0,0.00019934,2]
[349433229,1737179439528,-500.0,0.00019934,2]
[349433230,1737179439537,-500.0,0.00019934,2]
[349433231,1737179439547,-176.19289969,0.00019934,2]
[349433232,1737179439556,-500.0,0.00019934,2]
[349433233,1737179439565,-500.0,0.00019934,2]
[349433234,1737179439579,-500.0,0.00019934,2]
[349433235,1737179439588,-500.0,0.00019934,2]
[349433236,1737179439600,-500.0,0.00019934,2]
[349433237,1737179439610,-500.0,0.00019934,2]
[349433238,1737179439619,-502.77793733,0.00019934,2]
[349433239,1737179439628,-485.54284389,0.00019934,2]
[349433240,1737179439638,-500.0,0.00019934,2]
[349433242,1737179439647,-500.0,0.00019934,2]
[349433244,1737179439656,-505.54617362,0.00019934,2]
[349433246,1737179439666,-500.0,0.00019934,2]
[349433248,1737179439675,-514.501327,0.00019934,2]
[349433250,1737179439684,-500.0,0.00019934,2]
[349433252,1737179439693,-500.0,0.00019934,2]
[349433254,1737179439702,-504.53877574,0.00019934,2]
[349433256,1737179439712,-500.0,0.00019934,2]
[349433258,1737179439721,-500.0,0.00019934,2]
[349433260,1737179439730,-500.0,0.00019934,2]
[349433262,1737179439739,-500.0,0.00019934,2]
[349433264,1737179439748,-500.0,0.00019934,2]
[349433266,1737179439758,-500.0,0.00019934,2]
[349433268,1737179439767,-210.374241,0.00019934,2]
[349433270,1737179439775,-500.0,0.00019934,2]
[349433271,1737179439785,-440.10876235,0.00019934,2]
[349433273,1737179439794,-520.22723867,0.00019934,2]
[349433275,1737179439803,-500.0,0.00019934,2]
[349433277,1737179439812,-500.0,0.00019934,2]
[349433279,1737179439822,-500.0,0.00019934,2]
[349433281,1737179439831,-902.14,0.00019934,2]
[349433283,1737179439840,-500.0,0.00019934,2]
[349433285,1737179439853,-801.88,0.00019934,2]
[349433287,1737179439862,-500.0,0.00019934,2]
[349433289,1737179439871,-500.0,0.00019934,2]
[349433291,1737179439880,-500.0,0.00019934,2]
[349433293,1737179439890,-500.0,0.00019934,2]
[349433295,1737179439899,-500.0,0.00019934,2]
[349433297,1737179439908,-500.0,0.00019934,2]
[349433300,1737179439917,-500.0,0.00019934,2]
[349433302,1737179439926,-500.0,0.00019934,2]
[349433304,1737179439935,-500.0,0.00019934,2]
[349433306,1737179439944,-500.0,0.00019934,2]
[349433308,1737179439953,-253.54241985,0.00019934,2]
[349433310,1737179439962,-500.0,0.00019934,2]
[349433312,1737179439971,-577.94458256,0.00019934,2]
[349433314,1737179439980,-500.0,0.00019934,2]
[349433316,1737179439990,-500.0,0.00019934,2]
[349433318,1737179439999,-500.0,0.00019934,2]
[349433321,1737179440009,-500.0,0.00019934,2]
[349433322,1737179440020,-500.0,0.00019934,2]
[349433325,1737179440029,-2549.91,0.00019934,2]
[349433328,1737179440040,-500.0,0.00019934,2]
[349433330,1737179440049,-500.0,0.00019934,2]
[349433332,1737179440058,-500.0,0.00019934,2]
[349433334,1737179440069,-500.0,0.00019934,2]
[349433336,1737179440078,-500.0,0.00019934,2]
[349433338,1737179440088,-500.0,0.00019934,2]
[349433340,1737179440100,-500.0,0.00019934,2]
[349433343,1737179440109,-500.0,0.00019934,2]
[349433345,1737179440117,-500.0,0.00019934,2]
[349433347,1737179440126,-500.0,0.00019934,2]
[349433350,1737179440135,-500.0,0.00019934,2]
[349433352,1737179440146,-500.0,0.00019934,2]
[349433354,1737179440156,-500.0,0.00019934,2]
[349433356,1737179440165,-500.0,0.00019934,2]
[349433358,1737179440174,-810.43,0.00019934,2]
[349433360,1737179440183,-3058.54,0.00019934,2]
[349433362,1737179440192,-506.48277549,0.00019934,2]
[349433364,1737179440202,-500.0,0.00019934,2]
[349433366,1737179440212,-500.0,0.00019934,2]
[349433367,1737179440221,-500.0,0.00019934,2]
[349433369,1737179440231,-500.0,0.00019934,2]
[349433372,1737179440241,-500.0,0.00019934,2]
[349433374,1737179440250,-500.0,0.00019934,2]
[349433376,1737179440261,-500.0,0.00019934,2]
[349433378,1737179440270,-500.0,0.00019934,2]
[349433380,1737179440279,-2098.56,0.00019934,2]
[349433382,1737179440288,-500.0,0.00019934,2]
[349433384,1737179440297,-500.0,0.00019934,2]
[349433386,1737179440306,-500.0,0.00019934,2]
[349433388,1737179440315,-500.0,0.00019934,2]
[349433390,1737179440324,-500.0,0.00019934,2]
[349433392,1737179440334,-500.0,0.00019934,2]
[349433394,1737179440343,-500.0,0.00019934,2]
[349433396,1737179440356,-500.0,0.00019934,2]
[349433398,1737179440365,-500.0,0.00019934,2]
[349433400,1737179440374,-504.10066994,0.00019934,2]
[349433402,1737179440383,-504.52235483,0.00019934,2]
[349433404,1737179440392,-1825.94,0.00019934,2]
[349433406,1737179440402,-500.0,0.00019934,2]
[349433408,1737179440411,-500.0,0.00019934,2]
[349433410,1737179440421,-509.47282937,0.00019934,2]
[349433412,1737179440430,-845.79,0.00019934,2]
[349433414,1737179440439,-504.58083403,0.00019934,2]
[349433416,1737179440448,-500.0,0.00019934,2]
[349433418,1737179440459,-1687.63,0.00019934,2]
[349433420,1737179440468,-500.0,0.00019934,2]
[349433422,1737179440476,-500.0,0.00019934,2]
[349433424,1737179440485,-506.3085372,0.00019934,2]
[349433426,1737179440494,-505.45892151,0.00019934,2]
[349433428,1737179440503,-500.0,0.00019934,2]
[349433430,1737179440513,-500.0,0.00019934,2]
[349433432,1737179440521,-500.0,0.00019934,2]
[349433434,1737179440530,-500.0,0.00019934,2]
[349433436,1737179440540,-500.0,0.00019934,2]
[349433437,1737179440549,-606.17,0.00019934,2]
[349433439,1737179440558,-606.17,0.00019934,2]
[349433441,1737179440567,-606.17,0.00019934,2]
[349433443,1737179440577,-606.17,0.00019934,2]
[349433445,1737179440589,-500.0,0.00019934,2]
[349433448,1737179440600,-500.0,0.00019934,2]
[349433450,1737179440610,-500.0,0.00019934,2]
[349433452,1737179440620,-606.17,0.00019934,2]
[349433454,1737179440629,-500.0,0.00019934,2]
[349433456,1737179440639,-500.0,0.00019934,2]
[349433458,1737179440648,-500.0,0.00019934,2]
[349433460,1737179440657,-500.0,0.00019934,2]
[349433462,1737179440667,-500.0,0.00019934,2]
[349433464,1737179440676,-500.0,0.00019934,2]
[349433466,1737179440685,-500.0,0.00019934,2]
[349433468,1737179440695,-601.37,0.00019934,2]
[349433470,1737179440704,-601.37,0.00019934,2]
[349433472,1737179440714,-601.37,0.00019934,2]
[349433474,1737179440723,-601.37,0.00019934,2]
[349433476,1737179440732,-601.37,0.00019934,2]
[349433478,1737179440741,-1101.33,0.00019934,2]
[349433480,1737179440750,-500.0,0.00019934,2]
[349433482,1737179440759,-1101.33,0.00019934,2]
[349433483,1737179440767,-1101.33,0.00019934,2]
[349433486,1737179440777,-500.0,0.00019934,2]
[349433487,1737179440786,-1101.33,0.00019934,2]
[349433490,1737179440795,-500.0,0.00019934,2]
[349433492,1737179440805,-1101.33,0.00019934,2]
[349433510,1737179440971,-1101.33,0.00019934,2]
[349433512,1737179440981,-500.0,0.00019934,2]
[349433514,1737179440990,-500.0,0.00019934,2]
[349433516,1737179440999,-500.0,0.00019934,2]
[349433518,1737179441009,-500.0,0.00019934,2]
[349433520,1737179441018,-500.0,0.00019934,2]
[349433522,1737179441027,-500.0,0.00019934,2]
[349433524,1737179441036,-500.0,0.00019934,2]
[349433526,1737179441046,-500.0,0.00019934,2]
[349433528,1737179441055,-500.0,0.00019934,2]
[349433530,1737179441064,-503.10361774,0.00019934,2]
[349433532,1737179441073,-1038.04,0.00019934,2]
[349433534,1737179441083,-500.0,0.00019934,2]
[349433536,1737179441092,-500.0,0.00019934,2]
[349433538,1737179441103,-500.0,0.00019934,2]
[349433540,1737179441112,-500.0,0.00019934,2]
[349433542,1737179441121,-500.0,0.00019934,2]
[349433544,1737179441132,-500.0,0.00019934,2]
[349433546,1737179441141,-765.71,0.00019934,2]
[349433548,1737179441150,-974.09,0.00019934,2]
[349433550,1737179441159,-765.71,0.00019934,2]
[349433552,1737179441168,-974.09,0.00019934,2]
[349433553,1737179441178,-765.71,0.00019934,2]
[349433555,1737179441187,-974.09,0.00019934,2]
[349433557,1737179441197,-765.71,0.00019934,2]
[349433559,1737179441207,-974.09,0.00019934,2]
[349433561,1737179441216,-765.71,0.00019934,2]
[349433563,1737179441225,-974.09,0.00019934,2]
[349433565,1737179441235,-765.71,0.00019934,2]
[349433568,1737179441244,-500.0,0.00019934,2]
[349433570,1737179441253,-502.90058252,0.00019934,2]
[349433571,1737179441263,-500.0,0.00019934,2]
[349433574,1737179441272,-500.0,0.00019934,2]
[349433575,1737179441282,-500.0,0.00019934,2]
[349433578,1737179441291,-505.04793415,0.00019934,2]
[349433580,1737179441301,-500.0,0.00019934,2]
[349433581,1737179441310,-500.0,0.00019934,2]
[349433584,1737179441320,-500.0,0.00019934,2]
[349433585,1737179441329,-500.0,0.00019934,2]
[349433587,1737179441339,-500.0,0.00019934,2]
[349433589,1737179441349,-500.0,0.00019934,2]
[349433591,1737179441359,-500.0,0.00019934,2]
[349433593,1737179441368,-500.0,0.00019934,2]
[349433595,1737179441378,-570.76167756,0.00019934,2]
[349433597,1737179441387,-500.0,0.00019934,2]
[349433599,1737179441396,-500.0,0.00019934,2]
[349433601,1737179441405,-1887.09,0.00019934,2]
[349433603,1737179441415,-500.0,0.00019934,2]
[349433605,1737179441424,-500.0,0.00019934,2]
[349433607,1737179441434,-1887.09,0.00019934,2]
[349433609,1737179441443,-1887.09,0.00019934,2]
[349433611,1737179441452,-1887.09,0.00019934,2]